[Event "Titled Tuesday Blitz August 23 Late 2022"]
[White "Aghasiyev, Kamal"]
[Black "Yurovskykh, Oleksandr"]
[WhiteFideId "13402854"]
[BlackFideId "14134020"]
[WhiteElo "2210"]
[BlackElo "2292"]
[Result "1/2-1/2"]
[Round "10"]
[TimeControl "180+1"]
[Date "2022.08.23"]
[WhiteClock "0:01:20"]
[BlackClock "0:00:55"]

1. d4 {[%clk 0:03:00]}  d5 {[%clk 0:02:59]} 2. c4 {[%clk 0:03:00]}  dxc4 {[%clk 0:03:00]} 3. Nf3 {[%clk 0:03:00]}  Nf6 {[%clk 0:03:00]} 4. e3 {[%clk 0:02:59]}  e6 {[%clk 0:03:00]} 5. Bxc4 {[%clk 0:02:59]}  c5 {[%clk 0:03:01]} 6. O-O {[%clk 0:02:58]}  Nc6 {[%clk 0:03:01]} 7. Qe2 {[%clk 0:02:56]}  cxd4 {[%clk 0:03:01]} 8. Rd1 {[%clk 0:02:57]}  Be7 {[%clk 0:03:01]} 9. exd4 {[%clk 0:02:57]}  O-O {[%clk 0:03:01]} 10. Nc3 {[%clk 0:02:56]}  Na5 {[%clk 0:03:02]} 11. Bd3 {[%clk 0:02:56]}  b6 {[%clk 0:03:02]} 12. Bg5 {[%clk 0:02:55]}  Bb7 {[%clk 0:03:03]} 13. Ne5 {[%clk 0:02:53]}  Rc8 {[%clk 0:03:02]} 14. Rac1 {[%clk 0:02:52]}  Nd5 {[%clk 0:03:01]} 15. Nxd5 {[%clk 0:02:38]}  Qxd5 {[%clk 0:02:45]} 16. Be4 {[%clk 0:02:27]}  Qxe4 {[%clk 0:02:25]} 17. Qxe4 {[%clk 0:02:27]}  Bxe4 {[%clk 0:02:26]} 18. Bxe7 {[%clk 0:02:27]}  Rfe8 {[%clk 0:02:25]} 19. f3 {[%clk 0:02:21]}  Bd5 {[%clk 0:02:23]} 20. Bb4 {[%clk 0:02:21]}  Nc6 {[%clk 0:02:20]} 21. Nxc6 {[%clk 0:02:20]}  Rxc6 {[%clk 0:02:21]} 22. Rxc6 {[%clk 0:02:17]}  Bxc6 {[%clk 0:02:22]} 23. Rc1 {[%clk 0:02:18]}  Rc8 {[%clk 0:02:22]} 24. Kf2 {[%clk 0:02:17]}  Bb7 {[%clk 0:02:21]} 25. Rxc8+ {[%clk 0:02:17]}  Bxc8 {[%clk 0:02:22]} 26. Ke3 {[%clk 0:02:17]}  Bb7 {[%clk 0:02:22]} 27. Bd6 {[%clk 0:02:18]}  Bd5 {[%clk 0:02:21]} 28. a3 {[%clk 0:02:15]}  f6 {[%clk 0:02:17]} 29. Bb8 {[%clk 0:02:15]}  a6 {[%clk 0:02:17]} 30. Bc7 {[%clk 0:02:15]}  b5 {[%clk 0:02:17]} 31. g3 {[%clk 0:02:14]}  Kf7 {[%clk 0:02:17]} 32. f4 {[%clk 0:02:14]}  Kg6 {[%clk 0:02:17]} 33. Bd6 {[%clk 0:02:07]}  Kh5 {[%clk 0:02:15]} 34. Bf8 {[%clk 0:02:07]}  g6 {[%clk 0:02:10]} 35. Be7 {[%clk 0:02:06]}  f5 {[%clk 0:02:11]} 36. h4 {[%clk 0:01:54]}  Kg4 {[%clk 0:02:10]} 37. Kf2 {[%clk 0:01:54]}  Kh5 {[%clk 0:02:09]} 38. Bg5 {[%clk 0:01:53]}  a5 {[%clk 0:02:06]} 39. Bd8 {[%clk 0:01:52]}  a4 {[%clk 0:02:05]} 40. Be7 {[%clk 0:01:53]}  Kh6 {[%clk 0:02:05]} 41. Ke3 {[%clk 0:01:51]}  Kg7 {[%clk 0:01:41]} 42. Kd3 {[%clk 0:01:49]}  Kf7 {[%clk 0:01:41]} 43. Bd8 {[%clk 0:01:49]}  Ke8 {[%clk 0:01:41]} 44. Bf6 {[%clk 0:01:48]}  Kd7 {[%clk 0:01:42]} 45. Kc3 {[%clk 0:01:49]}  Kc6 {[%clk 0:01:42]} 46. Be7 {[%clk 0:01:42]}  Bc4 {[%clk 0:01:39]} 47. Kd2 {[%clk 0:01:41]}  Kd5 {[%clk 0:01:38]} 48. Ke3 {[%clk 0:01:42]}  Bf1 {[%clk 0:01:34]} 49. Bf6 {[%clk 0:01:41]}  Kc4 {[%clk 0:01:33]} 50. Bg7 {[%clk 0:01:40]}  Bg2 {[%clk 0:01:33]} 51. Kd2 {[%clk 0:01:32]}  Bd5 {[%clk 0:01:33]} 52. Be5 {[%clk 0:01:32]}  Kb3 {[%clk 0:01:32]} 53. Kc1 {[%clk 0:01:32]}  Be4 {[%clk 0:01:22]} 54. Bf6 {[%clk 0:01:30]}  Bf3 {[%clk 0:01:22]} 55. Be5 {[%clk 0:01:30]}  Kc4 {[%clk 0:01:23]} 56. Kd2 {[%clk 0:01:30]}  Bd5 {[%clk 0:01:23]} 57. Bf6 {[%clk 0:01:29]}  b4 {[%clk 0:01:01]} 58. axb4 {[%clk 0:01:28]}  Kxb4 {[%clk 0:01:02]} 59. Be5 {[%clk 0:01:27]}  Kc4 {[%clk 0:01:01]} 60. Bf6 {[%clk 0:01:26]}  Kb3 {[%clk 0:01:00]} 61. Kc1 {[%clk 0:01:26]}  Kb4 {[%clk 0:01:00]} 62. Kd2 {[%clk 0:01:25]}  Kc4 {[%clk 0:01:00]} 63. Be5 {[%clk 0:01:25]}  Bc6 {[%clk 0:01:01]} 64. Bf6 {[%clk 0:01:25]}  Kd5 {[%clk 0:01:01]} 65. Ke3 {[%clk 0:01:25]}  Be8 {[%clk 0:00:59]} 66. Bh8 {[%clk 0:01:23]}  Bb5 {[%clk 0:00:59]} 67. Bg7 {[%clk 0:01:23]}  Bf1 {[%clk 0:00:59]} 68. Bh8 {[%clk 0:01:23]}  Bg2 {[%clk 0:01:00]} 69. Bg7 {[%clk 0:01:24]}  Bh1 {[%clk 0:01:00]} 70. Bh8 {[%clk 0:01:24]}  Kc4 {[%clk 0:01:01]} 71. Kd2 {[%clk 0:01:23]}  Bd5 {[%clk 0:01:01]} 72. Bg7 {[%clk 0:01:22]}  Kb4 {[%clk 0:01:02]} 73. Bh8 {[%clk 0:01:20]}  Kb3 {[%clk 0:01:02]} 74. Kc1 {[%clk 0:01:20]}  Be4 {[%clk 0:01:02]} 75. Bg7 {[%clk 0:01:19]}  Kc4 {[%clk 0:01:00]} 76. Kd2 {[%clk 0:01:19]}  Bc6 {[%clk 0:01:00]} 77. Bh8 {[%clk 0:01:19]}  Bd5 {[%clk 0:01:00]} 78. Bg7 {[%clk 0:01:19]}  Bc6 {[%clk 0:00:44]} 79. Bh8 {[%clk 0:01:17]}  Kd5 {[%clk 0:00:45]} 80. Ke3 {[%clk 0:01:16]}  Bb5 {[%clk 0:00:43]} 81. Bg7 {[%clk 0:01:16]}  Bc4 {[%clk 0:00:44]} 82. Bh8 {[%clk 0:01:16]}  Bb3 {[%clk 0:00:44]} 83. Bg7 {[%clk 0:01:16]}  Kd6 {[%clk 0:00:45]} 84. Bh8 {[%clk 0:01:16]}  Ke7 {[%clk 0:00:45]} 85. Bg7 {[%clk 0:01:15]}  Kf7 {[%clk 0:00:45]} 86. Be5 {[%clk 0:01:14]}  Ke8 {[%clk 0:00:45]} 87. Bh8 {[%clk 0:01:14]}  Kf8 {[%clk 0:00:45]} 88. Be5 {[%clk 0:01:14]}  Kg8 {[%clk 0:00:46]} 89. Bf6 {[%clk 0:01:15]}  Kf8 {[%clk 0:00:45]} 90. Be5 {[%clk 0:01:15]}  Kf7 {[%clk 0:00:46]} 91. Bh8 {[%clk 0:01:15]}  Ke8 {[%clk 0:00:46]} 92. Be5 {[%clk 0:01:15]}  Kd7 {[%clk 0:00:47]} 93. Bh8 {[%clk 0:01:15]}  Kc6 {[%clk 0:00:47]} 94. Be5 {[%clk 0:01:15]}  Kd5 {[%clk 0:00:48]} 95. Bh8 {[%clk 0:01:15]}  Kc4 {[%clk 0:00:47]} 96. Kd2 {[%clk 0:01:14]}  Ba2 {[%clk 0:00:46]} 97. Bg7 {[%clk 0:01:14]}  Bb1 {[%clk 0:00:46]} 98. Bh8 {[%clk 0:01:14]}  Be4 {[%clk 0:00:46]} 99. Bg7 {[%clk 0:01:13]}  Bd5 {[%clk 0:00:47]} 100. Bh8 {[%clk 0:01:14]}  Kb3 {[%clk 0:00:46]} 101. Kc1 {[%clk 0:01:14]}  a3 {[%clk 0:00:45]} 102. bxa3 {[%clk 0:01:14]}  Kxa3 {[%clk 0:00:46]} 103. Kd2 {[%clk 0:01:14]}  Kb3 {[%clk 0:00:46]} 104. Ke3 {[%clk 0:01:14]}  Kc2 {[%clk 0:00:47]} 105. Be5 {[%clk 0:01:13]}  Kd1 {[%clk 0:00:47]} 106. Kf2 {[%clk 0:01:13]}  Kd2 {[%clk 0:00:47]} 107. Bf6 {[%clk 0:01:13]}  Kd3 {[%clk 0:00:48]} 108. Bg7 {[%clk 0:01:14]}  Ke4 {[%clk 0:00:48]} 109. Bf6 {[%clk 0:01:14]}  Bc4 {[%clk 0:00:46]} 110. Bg7 {[%clk 0:01:14]}  Kd5 {[%clk 0:00:47]} 111. Bf6 {[%clk 0:01:14]}  Bd3 {[%clk 0:00:47]} 112. Be5 {[%clk 0:01:15]}  Be4 {[%clk 0:00:48]} 113. Bf6 {[%clk 0:01:15]}  Bd3 {[%clk 0:00:48]} 114. Be5 {[%clk 0:01:15]}  Bb5 {[%clk 0:00:49]} 115. Bf6 {[%clk 0:01:16]}  Ke4 {[%clk 0:00:49]} 116. Be5 {[%clk 0:01:16]}  Bc4 {[%clk 0:00:49]} 117. Bf6 {[%clk 0:01:16]}  Bd5 {[%clk 0:00:50]} 118. Be5 {[%clk 0:01:17]}  Kd3 {[%clk 0:00:48]} 119. Bf6 {[%clk 0:01:17]}  Kc4 {[%clk 0:00:49]} 120. Be5 {[%clk 0:01:17]}  Kb5 {[%clk 0:00:50]} 121. Bf6 {[%clk 0:01:18]}  Kc6 {[%clk 0:00:51]} 122. Be5 {[%clk 0:01:18]}  Kd7 {[%clk 0:00:52]} 123. Bf6 {[%clk 0:01:19]}  Ke8 {[%clk 0:00:52]} 124. Be5 {[%clk 0:01:19]}  Kf8 {[%clk 0:00:53]} 125. Bf6 {[%clk 0:01:19]}  Kg8 {[%clk 0:00:54]} 126. Be5 {[%clk 0:01:19]}  Kf7 {[%clk 0:00:55]} 127. Bh8 {[%clk 0:01:20]}  Be4 {[%clk 0:00:51]} 128. Be5 {[%clk 0:01:20]}  Bd5 {[%clk 0:00:51]} 129. Bh8 {[%clk 0:01:20]}  Bc6 {[%clk 0:00:52]} 130. Be5 {[%clk 0:01:20]}  Bb7 {[%clk 0:00:53]} 131. Bh8 {[%clk 0:01:20]}  Ba8 {[%clk 0:00:54]} 132. Be5 {[%clk 0:01:20]}  Be4 {[%clk 0:00:54]} 133. Ke3 {[%clk 0:01:20]}  Bh1 {[%clk 0:00:55]} 134. Kf2 {[%clk 0:01:20]}  Bd5 {[%clk 0:00:55]} 1/2-1/2


[Site "https://www.chess.com"]

[Event "Titled Tuesday Blitz August 23 Late 2022"]
[White "Bok, Benjamin"]
[Black "Djordjevic, Vuk"]
[WhiteFideId "1017063"]
[BlackFideId "902098"]
[WhiteElo "2658"]
[BlackElo "2456"]
[Result "1-0"]
[Round "10"]
[TimeControl "180+1"]
[Date "2022.08.23"]
[WhiteClock "0:00:30"]
[BlackClock "0:00:01"]

1. d4 {[%clk 0:03:00]}  Nf6 {[%clk 0:02:59]} 2. c4 {[%clk 0:03:01]}  e6 {[%clk 0:02:59]} 3. Nc3 {[%clk 0:03:02]}  Bb4 {[%clk 0:03:00]} 4. Qc2 {[%clk 0:03:02]}  d5 {[%clk 0:02:54]} 5. a3 {[%clk 0:03:02]}  Bxc3+ {[%clk 0:02:50]} 6. Qxc3 {[%clk 0:03:03]}  O-O {[%clk 0:02:49]} 7. Bg5 {[%clk 0:03:03]}  c6 {[%clk 0:02:45]} 8. e3 {[%clk 0:02:59]}  Nbd7 {[%clk 0:02:44]} 9. Nf3 {[%clk 0:02:56]}  Ne4 {[%clk 0:02:21]} 10. Bxd8 {[%clk 0:02:51]}  Nxc3 {[%clk 0:02:21]} 11. Bh4 {[%clk 0:02:46]}  Ne4 {[%clk 0:02:15]} 12. Bd3 {[%clk 0:02:46]}  Nd6 {[%clk 0:02:03]} 13. cxd5 {[%clk 0:02:35]}  exd5 {[%clk 0:01:52]} 14. Be7 {[%clk 0:02:35]}  Ne4 {[%clk 0:01:46]} 15. Bxf8 {[%clk 0:02:35]}  Kxf8 {[%clk 0:01:45]} 16. Nd2 {[%clk 0:02:25]}  Nd6 {[%clk 0:01:40]} 17. f3 {[%clk 0:02:22]}  Nb6 {[%clk 0:01:37]} 18. g4 {[%clk 0:02:17]}  Be6 {[%clk 0:01:28]} 19. Kf2 {[%clk 0:02:17]}  h6 {[%clk 0:01:25]} 20. h4 {[%clk 0:02:13]}  g6 {[%clk 0:01:22]} 21. b3 {[%clk 0:02:11]}  a5 {[%clk 0:01:16]} 22. Rab1 {[%clk 0:02:07]}  Nd7 {[%clk 0:01:01]} 23. a4 {[%clk 0:02:07]}  c5 {[%clk 0:00:52]} 24. Rhc1 {[%clk 0:01:55]}  b6 {[%clk 0:00:48]} 25. Nf1 {[%clk 0:01:35]}  Rc8 {[%clk 0:00:39]} 26. Ng3 {[%clk 0:01:33]}  Kg7 {[%clk 0:00:24]} 27. h5 {[%clk 0:01:32]}  Rf8 {[%clk 0:00:23]} 28. hxg6 {[%clk 0:01:17]}  fxg6 {[%clk 0:00:23]} 29. Kg2 {[%clk 0:01:17]}  Re8 {[%clk 0:00:18]} 30. Ne2 {[%clk 0:01:12]}  Bf7 {[%clk 0:00:10]} 31. Kf2 {[%clk 0:01:12]}  Rf8 {[%clk 0:00:09]} 32. Rd1 {[%clk 0:01:06]}  Ne4+ {[%clk 0:00:04]} 33. fxe4 {[%clk 0:00:57]}  dxe4 {[%clk 0:00:05]} 34. Bb5 {[%clk 0:00:55]}  Bxb3+ {[%clk 0:00:06]} 35. Nf4 {[%clk 0:00:46]}  Bxd1 {[%clk 0:00:06]} 36. Rxd1 {[%clk 0:00:47]}  g5 {[%clk 0:00:02]} 37. Bxd7 {[%clk 0:00:45]}  gxf4 {[%clk 0:00:03]} 38. dxc5 {[%clk 0:00:45]}  bxc5 {[%clk 0:00:01]} 39. exf4 {[%clk 0:00:43]}  Rxf4+ {[%clk 0:00:02]} 40. Ke3 {[%clk 0:00:44]}  Rf3+ {[%clk 0:00:01]} 41. Kxe4 {[%clk 0:00:44]}  Rc3 {[%clk 0:00:02]} 42. Rd6 {[%clk 0:00:43]}  c4 {[%clk 0:00:01]} 43. Ra6 {[%clk 0:00:40]}  Rc1 {[%clk 0:00:01]} 44. Bf5 {[%clk 0:00:34]}  c3 {[%clk 0:00:01]} 45. Kd3 {[%clk 0:00:34]}  Kf7 {[%clk 0:00:01]} 46. Rxa5 {[%clk 0:00:30]} 1-0


[Site "https://www.chess.com"]

[Event "Titled Tuesday Blitz August 23 Late 2022"]
[White "Bortnyk, Olexandr"]
[Black "Dubov, Daniil"]
[WhiteFideId "14120828"]
[BlackFideId "24126055"]
[WhiteElo "2723"]
[BlackElo "2791"]
[Result "0-1"]
[Round "10"]
[TimeControl "180+1"]
[Date "2022.08.23"]
[WhiteClock "0:00:03"]
[BlackClock "0:00:05"]

1. e4 {[%clk 0:02:58]}  e5 {[%clk 0:02:59]} 2. Bc4 {[%clk 0:02:57]}  Nf6 {[%clk 0:02:59]} 3. d3 {[%clk 0:02:57]}  Bc5 {[%clk 0:02:56]} 4. Nc3 {[%clk 0:02:55]}  c6 {[%clk 0:02:55]} 5. Qf3 {[%clk 0:02:49]}  d6 {[%clk 0:02:49]} 6. h3 {[%clk 0:02:48]}  Be6 {[%clk 0:02:39]} 7. Nge2 {[%clk 0:02:27]}  Nbd7 {[%clk 0:02:38]} 8. Bg5 {[%clk 0:02:12]}  h6 {[%clk 0:02:33]} 9. Be3 {[%clk 0:02:10]}  O-O {[%clk 0:02:10]} 10. Bb3 {[%clk 0:01:54]}  Rc8 {[%clk 0:01:31]} 11. g4 {[%clk 0:01:52]}  Bxe3 {[%clk 0:01:31]} 12. fxe3 {[%clk 0:01:52]}  d5 {[%clk 0:01:29]} 13. O-O-O {[%clk 0:01:49]}  Nc5 {[%clk 0:01:27]} 14. Rdg1 {[%clk 0:01:39]}  d4 {[%clk 0:01:10]} 15. Nd1 {[%clk 0:01:28]}  Nh7 {[%clk 0:01:04]} 16. h4 {[%clk 0:01:24]}  g6 {[%clk 0:01:04]} 17. g5 {[%clk 0:01:21]}  h5 {[%clk 0:01:02]} 18. exd4 {[%clk 0:01:21]}  exd4 {[%clk 0:01:01]} 19. Nf4 {[%clk 0:01:15]}  Bxb3 {[%clk 0:00:49]} 20. axb3 {[%clk 0:01:16]}  Kh8 {[%clk 0:00:48]} 21. Nf2 {[%clk 0:00:58]}  Nd7 {[%clk 0:00:48]} 22. Qg3 {[%clk 0:00:40]}  Qe7 {[%clk 0:00:45]} 23. Ne2 {[%clk 0:00:35]}  a5 {[%clk 0:00:32]} 24. Nxd4 {[%clk 0:00:33]}  Ra8 {[%clk 0:00:32]} 25. c3 {[%clk 0:00:29]}  a4 {[%clk 0:00:30]} 26. bxa4 {[%clk 0:00:30]}  Rxa4 {[%clk 0:00:29]} 27. Kc2 {[%clk 0:00:30]}  Rfa8 {[%clk 0:00:27]} 28. Qc7 {[%clk 0:00:29]}  R4a7 {[%clk 0:00:24]} 29. e5 {[%clk 0:00:22]}  Nhf8 {[%clk 0:00:23]} 30. Qd6 {[%clk 0:00:17]}  Qxe5 {[%clk 0:00:22]} 31. Qxe5+ {[%clk 0:00:18]}  Nxe5 {[%clk 0:00:23]} 32. Re1 {[%clk 0:00:18]}  Nfd7 {[%clk 0:00:22]} 33. Ne4 {[%clk 0:00:17]}  Ra2 {[%clk 0:00:18]} 34. Rhf1 {[%clk 0:00:14]}  R8a6 {[%clk 0:00:15]} 35. Nd6 {[%clk 0:00:10]}  Rb6 {[%clk 0:00:15]} 36. Rb1 {[%clk 0:00:05]}  Kg8 {[%clk 0:00:15]} 37. Nc8 {[%clk 0:00:05]}  Rba6 {[%clk 0:00:15]} 38. Nd6 {[%clk 0:00:05]}  Nc5 {[%clk 0:00:14]} 39. Rfd1 {[%clk 0:00:04]}  Rb6 {[%clk 0:00:13]} 40. Nc8 {[%clk 0:00:04]}  Rba6 {[%clk 0:00:13]} 41. Nb3 {[%clk 0:00:03]}  Ne6 {[%clk 0:00:10]} 42. Nd6 {[%clk 0:00:03]}  Ng4 {[%clk 0:00:10]} 43. Re1 {[%clk 0:00:02]}  R2a4 {[%clk 0:00:10]} 44. Nxb7 {[%clk 0:00:02]}  Nh2 {[%clk 0:00:08]} 45. N7c5 {[%clk 0:00:02]}  Nf3 {[%clk 0:00:06]} 46. Re3 {[%clk 0:00:01]}  Nxh4 {[%clk 0:00:07]} 47. Nxa6 {[%clk 0:00:01]}  Rxa6 {[%clk 0:00:07]} 48. Rh1 {[%clk 0:00:01]}  Nf5 {[%clk 0:00:07]} 49. Ree1 {[%clk 0:00:02]}  h4 {[%clk 0:00:07]} 50. d4 {[%clk 0:00:02]}  Nxg5 {[%clk 0:00:07]} 51. Reg1 {[%clk 0:00:01]}  Nf3 {[%clk 0:00:07]} 52. Rc1 {[%clk 0:00:01]}  Ra8 {[%clk 0:00:06]} 53. Nc5 {[%clk 0:00:01]}  Re8 {[%clk 0:00:06]} 54. Kd3 {[%clk 0:00:02]}  Re3+ {[%clk 0:00:05]} 55. Kc4 {[%clk 0:00:02]}  g5 {[%clk 0:00:05]} 56. b4 {[%clk 0:00:03]}  Nd2# {[%clk 0:00:05]} 0-1


[Site "https://www.chess.com"]

[Event "Titled Tuesday Blitz August 23 Late 2022"]
[White "Bryakin, Mikhail"]
[Black "Gheorghiu, Calin"]
[WhiteFideId "4165314"]
[BlackFideId "1200305"]
[WhiteElo "2353"]
[BlackElo "2168"]
[Result "1-0"]
[Round "10"]
[TimeControl "180+1"]
[Date "2022.08.23"]
[WhiteClock "0:02:25"]
[BlackClock "0:00:18"]

1. e4 {[%clk 0:03:00]}  c5 {[%clk 0:02:59]} 2. Nf3 {[%clk 0:02:56]}  d6 {[%clk 0:02:59]} 3. Bb5+ {[%clk 0:02:56]}  Nd7 {[%clk 0:02:58]} 4. c3 {[%clk 0:02:55]}  Nf6 {[%clk 0:02:53]} 5. Qe2 {[%clk 0:02:54]}  e5 {[%clk 0:02:44]} 6. O-O {[%clk 0:02:54]}  a6 {[%clk 0:02:43]} 7. Ba4 {[%clk 0:02:54]}  b5 {[%clk 0:02:37]} 8. Bc2 {[%clk 0:02:55]}  Be7 {[%clk 0:02:31]} 9. d3 {[%clk 0:02:50]}  O-O {[%clk 0:02:31]} 10. a4 {[%clk 0:02:51]}  Bb7 {[%clk 0:02:31]} 11. Be3 {[%clk 0:02:52]}  Qc7 {[%clk 0:02:29]} 12. h3 {[%clk 0:02:52]}  Rfe8 {[%clk 0:02:29]} 13. Nbd2 {[%clk 0:02:53]}  d5 {[%clk 0:02:27]} 14. exd5 {[%clk 0:02:52]}  Nxd5 {[%clk 0:02:26]} 15. Rfe1 {[%clk 0:02:46]}  Nxe3 {[%clk 0:02:09]} 16. fxe3 {[%clk 0:02:43]}  Bf8 {[%clk 0:02:03]} 17. e4 {[%clk 0:02:42]}  Bc6 {[%clk 0:02:01]} 18. Nf1 {[%clk 0:02:41]}  Qb7 {[%clk 0:01:53]} 19. Ne3 {[%clk 0:02:41]}  c4 {[%clk 0:01:49]} 20. dxc4 {[%clk 0:02:41]}  Bxe4 {[%clk 0:01:49]} 21. Bxe4 {[%clk 0:02:39]}  Qxe4 {[%clk 0:01:49]} 22. axb5 {[%clk 0:02:37]}  axb5 {[%clk 0:01:49]} 23. cxb5 {[%clk 0:02:36]}  Rxa1 {[%clk 0:01:46]} 24. Rxa1 {[%clk 0:02:37]}  Bc5 {[%clk 0:01:45]} 25. Re1 {[%clk 0:02:37]}  Nf6 {[%clk 0:01:39]} 26. Nd2 {[%clk 0:02:34]}  Qh4 {[%clk 0:01:25]} 27. b4 {[%clk 0:02:27]}  Bb6 {[%clk 0:01:20]} 28. Qf2 {[%clk 0:02:27]}  Qxf2+ {[%clk 0:00:23]} 29. Kxf2 {[%clk 0:02:28]}  Nd5 {[%clk 0:00:23]} 30. c4 {[%clk 0:02:27]}  Bxe3+ {[%clk 0:00:21]} 31. Rxe3 {[%clk 0:02:27]}  Nxe3 {[%clk 0:00:20]} 32. Kxe3 {[%clk 0:02:28]}  f5 {[%clk 0:00:20]} 33. b6 {[%clk 0:02:28]}  Kf7 {[%clk 0:00:20]} 34. c5 {[%clk 0:02:29]}  Ke6 {[%clk 0:00:21]} 35. c6 {[%clk 0:02:25]}  Kd6 {[%clk 0:00:21]} 36. c7 {[%clk 0:02:25]}  Kc6 {[%clk 0:00:20]} 37. Nc4 {[%clk 0:02:26]}  Kb7 {[%clk 0:00:18]} 38. Nd6+ {[%clk 0:02:25]} 1-0


[Site "https://www.chess.com"]

[Event "Titled Tuesday Blitz August 23 Late 2022"]
[White "Chigaev, Maksim"]
[Black "Martinez Alcantara, Jose Eduardo"]
[WhiteFideId "4108116"]
[BlackFideId "3805662"]
[WhiteElo "2487"]
[BlackElo "2703"]
[Result "1/2-1/2"]
[Round "10"]
[TimeControl "180+1"]
[Date "2022.08.23"]
[WhiteClock "0:00:06"]
[BlackClock "0:00:05"]

1. e4 {[%clk 0:03:00]}  Nc6 {[%clk 0:02:58]} 2. Nf3 {[%clk 0:02:58]}  d6 {[%clk 0:02:58]} 3. g3 {[%clk 0:02:57]}  Nf6 {[%clk 0:02:59]} 4. d3 {[%clk 0:02:56]}  g6 {[%clk 0:02:59]} 5. Bg2 {[%clk 0:02:56]}  Bg7 {[%clk 0:03:00]} 6. O-O {[%clk 0:02:57]}  O-O {[%clk 0:03:00]} 7. Re1 {[%clk 0:02:58]}  e5 {[%clk 0:03:01]} 8. a4 {[%clk 0:02:58]}  h6 {[%clk 0:03:00]} 9. a5 {[%clk 0:02:57]}  a6 {[%clk 0:02:59]} 10. c3 {[%clk 0:02:58]}  Be6 {[%clk 0:02:53]} 11. Nbd2 {[%clk 0:02:55]}  Qd7 {[%clk 0:02:51]} 12. b4 {[%clk 0:02:52]}  Bh3 {[%clk 0:02:50]} 13. Rb1 {[%clk 0:02:49]}  Bxg2 {[%clk 0:02:45]} 14. Kxg2 {[%clk 0:02:50]}  d5 {[%clk 0:02:43]} 15. Qc2 {[%clk 0:02:33]}  b6 {[%clk 0:02:27]} 16. Ba3 {[%clk 0:01:27]}  Rfd8 {[%clk 0:02:15]} 17. axb6 {[%clk 0:01:27]}  cxb6 {[%clk 0:02:15]} 18. Qa2 {[%clk 0:01:26]}  Qe6 {[%clk 0:02:02]} 19. Kg1 {[%clk 0:01:13]}  Qd7 {[%clk 0:01:33]} 20. Rbd1 {[%clk 0:01:10]}  Rac8 {[%clk 0:01:26]} 21. Qb3 {[%clk 0:01:10]}  Qh3 {[%clk 0:01:16]} 22. b5 {[%clk 0:00:56]}  Na5 {[%clk 0:01:16]} 23. Qb1 {[%clk 0:00:51]}  axb5 {[%clk 0:00:59]} 24. Be7 {[%clk 0:00:51]}  dxe4 {[%clk 0:00:52]} 25. dxe4 {[%clk 0:00:45]}  Re8 {[%clk 0:00:47]} 26. Bxf6 {[%clk 0:00:44]}  Bxf6 {[%clk 0:00:48]} 27. Qxb5 {[%clk 0:00:44]}  Qe6 {[%clk 0:00:49]} 28. Rb1 {[%clk 0:00:39]}  Rc6 {[%clk 0:00:47]} 29. Nf1 {[%clk 0:00:31]}  Nc4 {[%clk 0:00:36]} 30. Rbd1 {[%clk 0:00:21]}  Rec8 {[%clk 0:00:31]} 31. Rd3 {[%clk 0:00:15]}  Rc5 {[%clk 0:00:28]} 32. Qd7 {[%clk 0:00:09]}  Qxd7 {[%clk 0:00:25]} 33. Rxd7 {[%clk 0:00:10]}  Kf8 {[%clk 0:00:18]} 34. Kg2 {[%clk 0:00:09]}  Ke8 {[%clk 0:00:18]} 35. Rb7 {[%clk 0:00:08]}  R5c7 {[%clk 0:00:15]} 36. Rxc7 {[%clk 0:00:08]}  Rxc7 {[%clk 0:00:16]} 37. Rb1 {[%clk 0:00:08]}  Be7 {[%clk 0:00:16]} 38. N3d2 {[%clk 0:00:07]}  Nxd2 {[%clk 0:00:15]} 39. Nxd2 {[%clk 0:00:08]}  Rc6 {[%clk 0:00:09]} 40. Rb3 {[%clk 0:00:06]}  Kd7 {[%clk 0:00:09]} 41. Nf3 {[%clk 0:00:06]}  Ke6 {[%clk 0:00:09]} 42. Ne1 {[%clk 0:00:06]}  Bd8 {[%clk 0:00:07]} 43. Nd3 {[%clk 0:00:06]}  Rc4 {[%clk 0:00:07]} 44. f3 {[%clk 0:00:04]}  Ra4 {[%clk 0:00:07]} 45. Rb2 {[%clk 0:00:04]}  f5 {[%clk 0:00:07]} 46. exf5+ {[%clk 0:00:03]}  gxf5 {[%clk 0:00:08]} 47. Nb4 {[%clk 0:00:04]}  Bc7 {[%clk 0:00:07]} 48. Rd2 {[%clk 0:00:04]}  Bd6 {[%clk 0:00:08]} 49. Nd5 {[%clk 0:00:03]}  b5 {[%clk 0:00:05]} 50. h3 {[%clk 0:00:01]}  Rc4 {[%clk 0:00:05]} 51. g4 {[%clk 0:00:01]}  fxg4 {[%clk 0:00:04]} 52. hxg4 {[%clk 0:00:02]}  Rc5 {[%clk 0:00:05]} 53. Ne3 {[%clk 0:00:02]}  Rxc3 {[%clk 0:00:05]} 54. Nf5 {[%clk 0:00:03]}  Bc5 {[%clk 0:00:03]} 55. Re2 {[%clk 0:00:02]}  b4 {[%clk 0:00:02]} 56. f4 {[%clk 0:00:03]}  Kd7 {[%clk 0:00:01]} 57. fxe5 {[%clk 0:00:03]}  b3 {[%clk 0:00:02]} 58. e6+ {[%clk 0:00:03]}  Kc7 {[%clk 0:00:01]} 59. e7 {[%clk 0:00:04]}  Bxe7 {[%clk 0:00:02]} 60. Rxe7+ {[%clk 0:00:04]}  Kc6 {[%clk 0:00:02]} 61. Re2 {[%clk 0:00:05]}  Kd5 {[%clk 0:00:02]} 62. Kf2 {[%clk 0:00:04]}  Kc4 {[%clk 0:00:01]} 63. Ne3+ {[%clk 0:00:04]}  Kd3 {[%clk 0:00:01]} 64. Nd5 {[%clk 0:00:05]}  Rc2 {[%clk 0:00:01]} 65. Nb4+ {[%clk 0:00:05]}  Kc3 {[%clk 0:00:01]} 66. Nxc2 {[%clk 0:00:05]}  bxc2 {[%clk 0:00:02]} 67. Re1 {[%clk 0:00:04]}  Kd2 {[%clk 0:00:02]} 68. Rh1 {[%clk 0:00:03]}  c1=Q {[%clk 0:00:03]} 69. Rxc1 {[%clk 0:00:03]}  Kxc1 {[%clk 0:00:04]} 70. Ke3 {[%clk 0:00:04]}  Kd1 {[%clk 0:00:04]} 71. Kf3 {[%clk 0:00:04]}  Ke1 {[%clk 0:00:04]} 72. Kg3 {[%clk 0:00:04]}  Ke2 {[%clk 0:00:05]} 73. Kf4 {[%clk 0:00:04]}  Kf2 {[%clk 0:00:05]} 74. g5 {[%clk 0:00:05]}  hxg5+ {[%clk 0:00:05]} 75. Kxg5 {[%clk 0:00:06]} 1/2-1/2


[Site "https://www.chess.com"]